bitfinex/quotes_ETHUSD_20240714
["timestamp","ask_amount","ask_price","bid_price","bid_amount"]
[1720915631503,0.3284462,3191.1,3190.1,1.906]
[1720915631644,1.08600108,3190.4,3190.1,1.906]
[1720915631985,1.08600108,3190.3,3190.2,0.1906]
[1720915632826,1.08600108,3190.3,3190.2,0.9846]
[1720915632993,1.08600108,3190.3,3190.2,3.2642]
[1720915634867,1.08589465,3190.3,3190.2,3.2642]
[1720915638146,1.08593543,3190.3,3190.2,3.2642]
[1720915638568,0.3284462,3191.1,3190.2,3.2642]
[1720915638774,0.3284462,3191.1,3190.8,0.794]
[1720915638775,3.04269052,3191.0,3190.8,0.794]
[1720915638970,1.08593674,3190.9,3190.8,0.794]
[1720915640859,1.08593674,3190.9,3190.6,0.794]
[1720915641058,1.08593674,3190.8,3190.6,0.794]
[1720915641258,0.3284462,3191.1,3190.6,0.794]
[1720915641259,1.08588142,3190.7,3190.6,0.794]
[1720915641792,1.0859036,3190.7,3190.6,0.794]
[1720915642462,3.04342951,3190.7,3190.6,0.794]
[1720915643112,1.0859036,3190.7,3190.6,0.794]
[1720915643289,1.39024655,3190.7,3190.6,0.794]
[1720915643494,3.34777246,3190.7,3190.3,0.794]
[1720915643721,3.04342951,3190.6,3190.3,0.794]
[1720915643888,1.0859036,3190.5,3190.3,0.794]
[1720915644090,3.04342951,3190.6,3190.3,0.794]
[1720915644290,1.42068085,3190.5,3189.7,2.4677]
[1720915644596,1.95930664,3190.3,3189.9,0.794]
[1720915644786,1.08612026,3190.2,3189.9,0.794]
[1720915646402,1.08612026,3190.2,3190.1,0.794]
[1720915647729,2.67964295,3190.7,3190.1,0.794]
[1720915647913,2.67964295,3190.7,3189.6,3.0]
[1720915647914,3.31342691,3190.6,3190.3,0.794]
[1720915648119,1.08606285,3190.5,3190.3,0.794]
[1720915648418,1.08606285,3190.4,3190.3,0.794]
[1720915650733,1.08606285,3190.4,3189.9,1.906]
[1720915650895,1.08606285,3190.4,3189.8,2.4677]
[1720915651096,2.3753,3190.7,3189.8,2.4677]
[1720915651097,1.08606285,3190.3,3189.8,2.4677]
[1720915651289,1.08606285,3190.5,3189.8,2.4677]
[1720915651509,1.08604825,3190.4,3189.8,3.01447]
[1720915651728,1.08604825,3190.3,3189.9,3.0]
[1720915651890,1.9600504,3190.6,3189.9,3.0]
[1720915651891,1.08604825,3190.2,3189.9,3.0]
[1720915652091,1.08604825,3190.1,3189.9,3.0]
[1720915652310,1.08604825,3190.0,3189.9,3.0]
[1720915653225,1.08604825,3190.0,3189.6,2.4677]
[1720915653422,1.08604825,3189.9,3189.6,5.90507]
[1720915653635,1.08604825,3190.4,3189.6,2.90507]
[1720915654255,1.08605811,3190.3,3189.6,2.90507]
[1720915654560,1.08605962,3190.2,3189.6,2.90507]
[1720915654711,1.96007573,3190.6,3189.7,0.481107]
[1720915654712,1.08605962,3190.1,3189.7,0.481107]
[1720915654916,1.08605962,3190.0,3189.9,4.3737]
[1720915655117,1.96007573,3190.8,3189.9,4.3737]
[1720915655339,1.08594206,3190.7,3189.9,4.3737]
[1720915655540,1.08594206,3190.6,3189.9,4.8591807]
[1720915655740,1.08594206,3190.7,3189.9,4.8591807]
[1720915656132,1.08594206,3190.7,3190.0,2.2681]
[1720915656450,1.96007573,3191.0,3190.0,2.33078324]
[1720915656451,1.08594206,3190.6,3190.0,2.33078324]
[1720915656617,1.08594206,3190.5,3190.0,2.33078324]
[1720915656813,1.08594206,3190.4,3190.1,0.47222639]
[1720915657054,1.08594206,3190.3,3190.1,0.47222639]
[1720915657418,1.96030653,3191.0,3190.1,0.47222639]
[1720915657617,1.08591118,3190.9,3190.1,0.47222639]
[1720915657937,1.08591118,3190.8,3190.2,0.06268029]
[1720915658252,1.08591118,3190.7,3190.3,1.906]
[1720915658441,1.96030653,3191.0,3190.3,1.906]
[1720915658442,1.08591118,3190.6,3190.4,0.19686803]
[1720915658755,1.08591118,3190.5,3190.4,0.19686803]
[1720915659649,1.08591118,3190.5,3190.4,2.46496803]
[1720915659854,1.08591118,3190.5,3190.4,2.2681]
[1720915660620,1.08588192,3190.5,3190.4,2.2681]
[1720915663843,2.28824177,3191.1,3190.4,2.2681]
[1720915664033,1.08588335,3191.0,3190.4,2.2681]
[1720915664232,1.08588335,3190.9,3190.4,2.2681]
[1720915664443,1.08588233,3190.8,3190.4,2.2681]
[1720915664655,1.08588233,3190.7,3190.4,2.2681]
[1720915664866,1.08588233,3191.0,3190.4,2.2681]
[1720915665015,1.08588233,3190.9,3190.4,2.2681]
[1720915665220,1.08588233,3191.0,3190.4,2.2681]
[1720915665415,1.08588233,3190.9,3190.4,2.2681]
[1720915665644,1.08588233,3190.8,3190.4,2.2681]
[1720915665851,1.08588233,3190.7,3190.4,2.2681]
[1720915666064,1.08588233,3190.6,3190.4,2.2681]
[1720915666247,1.08588233,3190.5,3190.4,2.2681]
[1720915667373,1.085866,3190.5,3190.4,2.2681]
[1720915670549,1.085866,3190.5,3190.4,3.0621]
[1720915673048,1.08584806,3190.5,3190.4,3.0621]
[1720915673742,2.2973,3191.3,3190.4,3.0621]
[1720915673942,3.04293731,3191.2,3190.9,0.794]
[1720915674250,1.08584549,3191.1,3190.9,0.794]
[1720915674454,1.08584549,3191.0,3190.9,0.794]
[1720915677261,1.08582946,3191.0,3190.9,0.794]
[1720915677675,2.52703,3191.3,3190.9,0.794]
[1720915677843,3.29485545,3191.2,3190.7,0.794]
[1720915678047,1.08584279,3191.1,3190.7,0.794]
[1720915678756,1.08584279,3191.1,3189.3,0.65838844]
[1720915678757,1.95630966,3190.9,3189.8,2.4663]
[1720915678979,2.3906,3190.7,3190.2,0.794]
[1720915679291,1.08584279,3190.6,3190.2,0.794]
[1720915680377,1.08584279,3190.6,3189.8,2.4663]
[1720915680378,1.08600405,3190.5,3190.4,0.794]
[1720915680585,1.08600405,3190.5,3190.2,0.794]
[1720915680788,2.3806,3190.3,3190.0,0.794]
[1720915680956,1.08600405,3190.2,3190.0,0.794]
[1720915681568,1.08600405,3190.5,3190.0,0.794]
[1720915681774,1.08600405,3190.5,3190.3,0.794]
[1720915682458,2.3806,3190.8,3190.3,0.794]
[1720915682459,1.08600405,3190.4,3190.3,0.794]
[1720915682887,1.0859013,3190.4,3190.3,0.794]
[1720915684496,1.0859013,3190.4,3190.3,3.1718]
[1720915684829,1.0858335,3190.4,3190.3,3.1718]
[1720915685127,1.95688617,3191.3,3190.3,3.79524828]
[1720915685314,1.95688617,3191.3,3191.0,0.794]
[1720915685315,1.08578228,3191.2,3191.0,0.794]
[1720915685524,1.08578228,3191.1,3191.0,0.794]
[1720915685889,1.08578228,3191.2,3190.8,0.794]
[1720915686224,3.04334324,3191.1,3190.8,0.794]
[1720915686532,1.08586837,3191.0,3190.3,2.3778]
[1720915686796,1.08586837,3191.0,3190.9,0.794]
[1720915686941,1.08586837,3191.2,3190.9,0.794]
[1720915687143,1.08586837,3191.1,3190.9,0.794]
[1720915687453,1.08586837,3191.0,3190.9,0.794]
[1720915689315,1.0857948,3191.0,3190.9,0.794]
[1720915689503,1.08579385,3191.0,3190.9,0.794]
[1720915689705,4.3379332,3191.4,3190.9,0.794]
[1720915689706,2.3806,3191.4,3190.9,0.794]
[1720915689900,1.08578965,3191.3,3190.9,0.794]
[1720915691327,1.08578965,3191.3,3191.2,0.794]
[1720915692378,4.3377902,3191.9,3191.2,0.794]
[1720915692524,1.08558242,3191.8,3191.6,0.794]
[1720915692723,1.08558242,3191.7,3191.6,0.794]
[1720915694646,1.08558242,3191.7,3190.4,1.69881038]
[1720915694647,1.08558242,3191.7,3191.1,4.2818]
[1720915694843,0.32834855,3192.1,3191.1,4.70998]
[1720915694844,1.08558242,3191.6,3191.1,4.70998]
[1720915695049,1.08558242,3191.5,3191.1,4.70998]
[1720915695374,0.32834855,3192.1,3191.1,4.70998]
[1720915695674,1.08551377,3192.0,3191.1,4.70998]
[1720915695857,1.08551377,3191.9,3191.1,4.70998]
[1720915696180,1.08551377,3191.8,3191.2,0.470998]
[1720915696360,1.08551377,3192.0,3191.2,0.470998]
[1720915697079,1.08551377,3192.0,3191.3,2.3592]
[1720915697261,1.08551377,3192.2,3191.7,1.904]
[1720915697436,2.4133,3192.6,3191.7,1.904]
[1720915697635,1.08532031,3192.5,3191.7,2.0944]
[1720915697861,1.08532031,3192.4,3191.8,2.3592]
[1720915698077,1.08532031,3192.3,3191.8,2.3592]
[1720915698289,2.4133,3192.7,3191.8,2.3592]
[1720915698290,2.4133,3192.7,3191.8,2.42185125]
[1720915698571,1.08531992,3192.6,3191.8,2.42185125]
[1720915698746,2.4133,3192.7,3191.8,2.42185125]
[1720915698962,1.3594804,3192.6,3191.8,2.42185125]
[1720915699306,1.08532198,3192.5,3191.8,2.42185125]
[1720915699471,1.08532198,3192.4,3191.8,2.42185125]
[1720915699783,0.27415842,3192.6,3191.8,2.42185125]
[1720915699994,1.08532104,3192.5,3191.8,2.42185125]
[1720915700211,1.08532104,3192.4,3191.8,2.42185125]
[1720915700373,2.17116617,3192.9,3192.1,1.904]
[1720915700551,1.0852588,3192.8,3192.1,1.904]
[1720915700880,2.17116617,3192.9,3192.2,0.1904]
[1720915702059,2.17116617,3192.9,3192.3,2.3592]
[1720915702284,2.17116617,3192.9,3192.4,0.0626389]
[1720915702589,2.17116617,3192.9,3192.5,1.904]
[1720915702802,2.17116617,3192.9,3192.6,0.06263743]
[1720915702948,2.17116617,3192.9,3192.6,0.55930117]
[1720915703173,2.17116617,3192.9,3192.6,0.49666374]
[1720915704576,2.17116617,3192.9,3192.5,1.904]
[1720915707106,2.17116617,3192.9,3192.6,2.3592]
[1720915707507,2.17116617,3192.9,3192.7,0.06263444]
[1720915708936,2.12116617,3192.9,3192.7,0.06263444]
[1720915709355,2.12116617,3192.9,3192.7,2.25512444]
[1720915709505,2.12116617,3192.9,3192.8,2.95386244]
[1720915710544,2.12116617,3192.9,3192.8,8.31306244]
[1720915710723,0.1165799,3194.0,3192.9,2.19231]
[1720915710918,0.1165799,3194.0,3193.1,1.904]
[1720915712243,0.1165799,3194.0,3193.2,0.06261968]
[1720915712421,0.1165799,3194.0,3193.3,0.19666197]
[1720915712624,0.1165799,3194.0,3193.3,2.61848162]
[1720915713962,0.1165799,3194.0,3193.3,2.55586197]
[1720915715335,0.1165799,3194.0,3193.3,0.19666197]
[1720915716238,0.1165799,3194.0,3193.1,1.904]
[1720915716438,0.1165799,3194.0,3192.9,3.0]
[1720915716439,2.4847,3193.9,3192.9,3.0]
[1720915716680,2.4847,3193.9,3192.7,3.0]
[1720915716971,2.4847,3193.7,3192.6,1.904]
[1720915717186,0.1165799,3194.0,3192.3,2.2583]
[1720915717187,1.08510022,3193.6,3192.3,2.2583]
[1720915717350,2.4847,3193.8,3192.4,2.2552876]
[1720915717535,2.4847,3193.8,3192.7,1.904]
[1720915718043,2.4847,3193.8,3192.3,4.59757]
[1720915718270,2.4847,3193.8,3191.9,2.19304]
[1720915718271,2.4847,3193.6,3191.9,1.904]
[1720915718474,3.0,3193.9,3191.9,1.904]
[1720915718475,2.4847,3193.4,3191.9,1.904]
[1720915718785,2.4847,3193.4,3191.1,0.06264563]
[1720915718786,2.4847,3193.2,3191.5,1.904]
[1720915718934,2.4847,3193.0,3191.5,1.904]
[1720915719134,3.56975709,3192.9,3191.5,1.904]
[1720915719373,1.08505709,3192.8,3191.5,1.904]
[1720915719530,1.08505709,3192.8,3191.6,0.635569]
[1720915720435,1.08505709,3192.8,3191.6,3.635569]
[1720915720649,2.4847,3192.9,3191.6,3.635569]
[1720915720854,2.4847,3192.9,3191.6,5.828799]
[1720915721078,2.4847,3192.9,3191.9,1.904]
[1720915721385,2.4847,3192.9,3192.0,0.1904]
[1720915721961,2.4847,3192.9,3192.1,0.06264698]
[1720915722162,2.2674,3193.7,3192.0,4.74067]
[1720915722377,2.2674,3193.5,3192.1,3.0]
[1720915722575,2.2674,3193.3,3192.1,3.0]
[1720915722778,2.2674,3193.3,3192.0,0.1904]
[1720915722779,1.42041874,3193.2,3192.2,0.31904]
[1720915722981,1.08516249,3193.1,3192.0,0.1904]
[1720915723156,2.2674,3193.3,3192.0,0.1904]
[1720915723362,1.08515842,3193.2,3192.0,0.1904]
[1720915723579,1.08515842,3193.1,3192.0,0.1904]
[1720915723780,2.2674,3193.3,3192.0,0.1904]
[1720915723988,1.0851593,3193.2,3192.1,0.728744]
[1720915724173,1.0851593,3193.1,3192.1,0.728744]
[1720915724518,2.2674,3193.3,3192.1,0.728744]
[1720915724654,1.08519224,3193.2,3192.1,0.728744]
[1720915725354,2.2674,3193.1,3192.1,0.728744]
[1720915725553,1.42045146,3193.0,3192.0,3.1904]
[1720915725907,1.42045146,3193.0,3192.0,0.1904]
[1720915725908,1.08519224,3192.9,3192.0,0.1904]
[1720915726195,1.08519224,3192.9,3192.1,3.0]
[1720915726355,1.08519224,3192.9,3192.0,0.1904]
[1720915726948,2.2674,3192.8,3191.9,3.0]
[1720915727149,2.2674,3192.8,3191.6,3.635569]
[1720915727150,1.08519224,3192.7,3191.6,3.635569]
[1720915727788,1.08532671,3192.6,3191.6,3.635569]
[1720915728098,1.08532671,3192.5,3191.6,3.635569]
[1720915728322,1.08534178,3192.4,3191.7,0.7732879]
[1720915728532,2.2674,3192.8,3191.7,0.7732879]
[1720915728811,1.08529435,3192.7,3191.7,0.7732879]
[1720915728979,1.08529435,3192.6,3191.7,0.7732879]
[1720915729184,1.08529435,3192.5,3191.7,0.7732879]
[1720915729492,2.2674,3193.4,3191.9,4.2613]
[1720915729691,1.08518535,3193.3,3191.9,4.2613]
[1720915729897,1.08518535,3193.2,3191.9,4.2613]
[1720915730080,1.08518535,3193.3,3191.9,4.2613]
[1720915730274,1.45326507,3193.3,3192.0,0.71146107]
[1720915730603,1.08518535,3193.2,3192.0,0.71146107]
[1720915730914,1.0852017,3193.1,3192.0,0.71146107]
[1720915731071,1.0852017,3193.0,3192.0,0.71146107]
[1720915731411,0.36807972,3193.3,3192.0,0.71146107]
[1720915731412,1.08519747,3192.9,3192.0,0.71146107]
[1720915731612,1.08519747,3192.8,3192.1,0.49727611]
[1720915731772,1.08519747,3192.7,3192.1,0.49727611]
[1720915731981,2.2674,3193.4,3192.1,0.49727611]
[1720915732177,1.0851873,3193.3,3192.1,0.49727611]
[1720915732418,1.0851873,3193.2,3192.1,0.49727611]
[1720915732618,2.2674,3193.4,3192.1,0.49727611]
[1720915732619,1.0851873,3193.3,3192.1,0.49727611]
[1720915732927,1.45326721,3193.3,3192.1,0.49727611]
[1720915733302,1.08519872,3193.2,3192.1,0.49727611]
[1720915733602,1.08519872,3193.1,3192.1,0.49727611]
[1720915733803,1.08519872,3193.0,3192.1,0.49727611]
[1720915734123,1.08519872,3192.9,3192.1,0.49727611]
[1720915734431,1.08518961,3192.8,3192.2,0.0626408]
[1720915734639,1.08518961,3192.7,3192.4,2.3573]
[1720915734810,2.2674,3193.4,3192.4,2.3573]
[1720915735010,1.08518724,3193.3,3192.4,2.3573]
[1720915735213,1.08518724,3193.2,3192.4,2.3573]
[1720915735434,1.08518724,3193.3,3192.4,2.3573]
[1720915735636,1.08518724,3193.2,3192.4,2.62055807]
[1720915735846,2.2674,3193.4,3192.4,2.62055807]
[1720915735847,1.08518724,3193.3,3192.4,2.62055807]
[1720915736144,1.08518724,3193.2,3192.1,2.97017611]
[1720915736347,1.08518724,3193.3,3192.1,2.4729]
[1720915737350,1.08518724,3193.3,3191.7,2.4729]
[1720915737351,2.3931,3193.2,3191.7,2.4729]
[1720915737547,0.34782872,3193.1,3191.8,2.959725]
[1720915737737,1.08525861,3193.1,3191.9,3.0]
[1720915737939,1.08525861,3193.0,3191.9,4.904]
[1720915738244,1.08525861,3192.9,3192.0,4.66585]
[1720915738424,1.08525861,3192.8,3192.1,0.956985]
[1720915738619,1.08525861,3192.7,3192.1,0.956985]
[1720915738819,1.08525861,3192.6,3192.1,3.149885]
[1720915739150,2.3931,3193.2,3192.1,3.149885]
[1720915739310,1.08522166,3193.1,3192.1,3.149885]
[1720915739632,1.08522166,3193.0,3192.3,2.4729]
[1720915739831,1.08522166,3192.9,3192.3,2.4729]
[1720915740155,1.08522166,3192.8,3192.3,2.4729]
[1720915740338,1.08522166,3192.8,3192.3,4.66566]
[1720915740652,2.5907118,3193.5,3192.3,4.66566]
[1720915740848,2.5907118,3193.5,3192.4,0.74207785]
[1720915740849,1.08514037,3193.4,3192.4,0.74207785]
[1720915741068,1.08514037,3193.3,3192.4,0.74207785]
[1720915741350,1.08513623,3193.2,3192.4,0.74207785]
[1720915741515,1.08513623,3193.1,3192.4,0.74207785]
[1720915741711,1.08513623,3193.0,3192.5,0.54077479]
[1720915742030,1.08513623,3192.9,3192.5,0.54077479]
[1720915742218,1.08513623,3193.4,3192.5,0.54077479]
[1720915743279,2.5907118,3193.5,3192.5,0.54077479]
[1720915743485,1.08513357,3193.4,3192.5,0.54077479]
[1720915743783,1.08513357,3193.3,3192.5,0.54077479]
[1720915743946,1.08513357,3193.4,3192.5,0.54077479]
[1720915746187,1.64850837,3193.4,3192.3,2.4729]
[1720915746348,3.34763357,3193.3,3192.3,2.4729]
[1720915746548,2.2625,3193.3,3192.3,2.4729]
[1720915746887,1.08522173,3193.2,3192.3,2.4729]
[1720915747182,1.08522173,3193.1,3192.3,3.02019]
[1720915747499,2.2625,3193.3,3192.3,3.02019]
[1720915747500,1.08522173,3193.0,3192.3,3.02019]
[1720915747651,1.08522173,3192.9,3192.3,3.02019]
[1720915747851,1.08522173,3192.8,3192.3,3.02019]
[1720915748075,1.08522173,3192.7,3192.3,3.02019]
[1720915748376,1.08522173,3192.6,3192.4,0.521301]
[1720915748582,1.08522173,3192.5,3192.4,0.521301]
[1720915749141,1.08522173,3192.5,3192.3,3.02019]
[1720915749387,1.08522173,3192.5,3191.3,1.63569002]
[1720915749388,1.08522173,3192.4,3191.4,2.4293]
[1720915749747,1.08543377,3192.3,3191.4,2.4293]
[1720915749947,1.08543377,3192.2,3191.4,2.4293]
[1720915750160,1.08543377,3192.6,3191.4,2.4293]
[1720915750360,0.30434196,3192.5,3191.4,2.4293]
[1720915750713,1.08543377,3192.4,3191.4,2.4293]
[1720915751189,1.08543377,3192.4,3191.2,3.0]
[1720915751190,2.2625,3192.3,3191.2,3.0]
[1720915751393,2.2625,3192.3,3190.9,4.09773]
[1720915751394,1.08543377,3192.2,3191.0,5.4293]
[1720915751690,1.08543377,3192.2,3191.1,0.952703]
[1720915752495,1.08543377,3192.2,3191.0,2.4293]
[1720915752993,1.08555245,3192.1,3191.0,2.4293]
[1720915753174,2.2625,3192.3,3191.0,2.4293]
[1720915753175,1.08555245,3192.0,3191.0,2.4293]
[1720915753384,2.2625,3192.3,3191.0,2.4293]
[1720915753385,1.0855722,3191.9,3191.0,2.4293]
[1720915753549,1.0855722,3191.8,3191.0,2.4293]
[1720915753749,1.0855722,3191.8,3191.1,0.73333]
[1720915753750,2.2625,3191.8,3191.1,0.73333]
[1720915753950,1.0855722,3191.7,3191.0,3.0]
[1720915754195,1.0855722,3191.7,3190.9,3.0]
[1720915754362,1.0855722,3191.7,3190.7,7.62316]
[1720915754562,1.0855722,3191.7,3190.9,1.904]
[1720915754766,1.0855722,3191.6,3190.9,4.904]
[1720915754979,2.2625,3192.1,3191.0,0.709775]
[1720915755284,1.08554165,3192.0,3191.0,3.709775]
[1720915755468,1.08554165,3191.9,3191.0,3.709775]
[1720915755675,2.2625,3192.1,3191.2,2.355]
[1720915755676,1.08554165,3191.8,3191.2,2.355]
[1720915755879,2.2625,3192.1,3191.2,5.355]
[1720915756079,1.08547228,3192.0,3191.3,0.754855]
[1720915756279,1.08546094,3192.0,3191.3,0.754855]
[1720915756471,1.08546094,3191.9,3191.3,0.754855]
[1720915756667,1.08546094,3192.0,3191.3,0.754855]
[1720915759616,1.08546094,3192.4,3191.3,0.754855]
[1720915759911,1.08546094,3192.3,3191.4,0.8303375]
[1720915760107,1.08546094,3192.2,3191.4,0.8303375]
[1720915760271,1.08546094,3192.1,3191.4,0.8303375]
[1720915760473,2.4979,3192.5,3191.4,0.8303375]
[1720915760474,1.08546094,3192.0,3191.4,0.8303375]
[1720915760711,2.4979,3192.5,3191.4,0.8303375]
[1720915760911,1.08542905,3192.4,3191.4,0.8303375]
[1720915761079,1.08542905,3192.3,3191.4,0.8303375]
[1720915761412,1.08542905,3192.2,3191.4,0.8303375]
[1720915761583,1.08542905,3192.1,3191.4,0.8303375]
[1720915761780,1.95677194,3192.7,3191.4,0.8303375]
[1720915761781,1.08542905,3192.0,3191.4,3.0237175]
[1720915762042,2.4979,3192.8,3191.6,4.54824]
[1720915762206,1.08536721,3192.7,3191.6,4.54824]
[1720915762571,1.08533425,3192.6,3191.6,4.54824]
[1720915762771,1.08533425,3192.5,3191.6,4.54824]
[1720915762997,1.08533425,3192.7,3191.6,4.54824]
[1720915763196,1.08533425,3192.7,3191.7,0.78506118]
[1720915763682,1.08533425,3192.7,3191.7,2.97824118]
[1720915765797,2.4979,3192.8,3191.7,2.97824118]
[1720915766109,1.08533038,3192.7,3191.7,2.97824118]
[1720915766297,2.4979,3192.8,3191.8,2.25575955]
[1720915766504,1.08531562,3192.7,3191.9,0.71380007]
[1720915766706,1.08531562,3192.6,3191.9,0.71380007]
[1720915767017,1.08531562,3192.5,3191.9,0.71380007]
[1720915767188,1.08531562,3192.4,3191.9,0.71380007]
[1720915767393,2.4979,3192.8,3192.0,0.59695596]
[1720915767736,1.08530634,3192.7,3192.0,0.59695596]
[1720915767933,1.08530634,3192.6,3192.0,0.59695596]
[1720915768091,1.08530634,3192.7,3192.0,0.59695596]
[1720915768699,1.08530634,3192.7,3191.8,3.0]
[1720915769139,1.08534278,3192.6,3191.8,3.0]
[1720915769325,1.08534378,3192.5,3191.8,3.0]
[1720915769547,1.08534378,3192.4,3191.8,3.0]
[1720915769844,1.08534378,3192.3,3191.7,3.78506118]
[1720915770043,1.08534378,3192.7,3191.7,3.78506118]
[1720915770350,1.67233895,3192.7,3191.7,3.78506118]
[1720915770642,1.08534378,3192.6,3191.7,3.78506118]
[1720915772541,1.08535471,3192.5,3191.7,3.78506118]
[1720915772744,1.08535471,3192.4,3191.7,3.78506118]
[1720915772951,1.08535471,3192.7,3191.7,3.78506118]
[1720915773128,1.08535471,3192.6,3191.7,3.78506118]
[1720915773339,1.08535471,3192.5,3191.7,3.78506118]
[1720915773543,1.08535471,3192.4,3191.8,0.61400612]
[1720915773743,1.08535471,3192.7,3191.8,0.61400612]
[1720915773951,1.08535471,3192.6,3191.8,0.61400612]
[1720915774143,2.4979,3192.8,3191.8,0.61400612]
[1720915774144,1.08535471,3192.5,3191.8,0.61400612]
[1720915774350,1.08535471,3192.4,3191.9,0.36140061]
[1720915774649,1.08535471,3192.3,3192.0,0.793]
[1720915774843,1.08535471,3192.7,3192.0,0.793]
[1720915775163,2.4979,3192.8,3192.0,0.793]
[1720915775164,1.08535471,3192.6,3192.0,0.793]
[1720915775330,1.08535471,3192.5,3192.0,0.793]
[1720915775519,1.08535471,3192.4,3192.0,0.793]
[1720915775721,1.08535508,3192.3,3192.0,0.793]
[1720915775960,1.08535508,3192.2,3192.0,0.793]
[1720915776147,1.08535508,3192.7,3192.0,0.793]
[1720915776353,0.35832551,3192.6,3192.0,0.793]
[1720915776554,1.08535508,3192.5,3191.8,0.793]
[1720915778953,0.35832551,3192.6,3191.7,3.0]
[1720915779258,2.4979,3192.8,3191.6,2.355]
[1720915779259,1.08539965,3192.5,3192.0,0.793]
[1720915779475,2.4979,3192.8,3192.0,0.793]
[1720915779621,3.04504383,3192.7,3192.0,0.793]
[1720915779827,1.08540929,3192.6,3192.1,2.4715]
[1720915780130,1.08540929,3192.6,3192.3,0.793]
[1720915780332,1.08540929,3192.5,3192.3,0.793]
[1720915780550,1.08540929,3192.4,3192.3,0.793]
[1720915780757,1.08540929,3192.4,3192.1,2.4715]
[1720915781062,2.70062136,3193.7,3192.1,2.4715]
[1720915781063,2.28784545,3193.3,3192.3,0.793]
[1720915781227,1.08518238,3193.2,3192.7,0.793]
[1720915781426,1.08518238,3193.1,3192.5,0.793]
[1720915781675,2.28784545,3193.3,3192.5,0.793]
[1720915781676,1.08518238,3193.0,3192.5,0.793]
[1720915781832,1.08518238,3192.9,3192.5,0.793]
[1720915782222,1.08522657,3192.8,3192.5,0.793]
[1720915782427,0.32821091,3193.3,3192.5,0.793]
[1720915782428,1.08519092,3192.7,3192.5,0.793]
[1720915782628,1.08519092,3193.2,3192.1,2.4715]
[1720915782856,1.08519092,3193.2,3192.2,0.766446]
[1720915784561,3.04574428,3193.2,3192.2,0.766446]
[1720915784728,1.08519092,3193.1,3192.2,0.766446]
[1720915785445,1.08524314,3193.0,3192.2,0.766446]
[1720915785773,1.08524314,3192.9,3192.2,0.766446]
[1720915785963,1.08524314,3193.1,3192.2,0.766446]
[1720915786144,1.08524314,3193.0,3192.2,0.766446]
[1720915786344,1.08524314,3192.9,3192.2,0.766446]
[1720915786553,2.28828295,3193.3,3192.1,2.4715]
[1720915786554,1.08524314,3192.8,3192.3,0.3237946]
[1720915786735,1.08524314,3192.7,3192.3,0.3237946]
[1720915786931,1.08524314,3192.6,3192.3,0.3237946]
[1720915787273,1.08524314,3192.5,3192.3,0.3237946]
[1720915787570,1.08524314,3192.4,3192.3,0.3237946]
[1720915787864,1.08524314,3193.1,3192.3,0.3237946]
[1720915788069,1.38977466,3193.0,3192.1,2.4715]
[1720915788275,1.08524314,3192.9,3192.1,2.4715]
[1720915788444,3.35024314,3192.9,3192.1,2.4715]
[1720915788644,1.08524314,3192.8,3192.1,2.4715]
[1720915788968,1.08527107,3192.7,3192.1,2.4715]
[1720915789268,1.08527107,3192.6,3191.9,3.0]
[1720915789566,0.33502431,3192.8,3191.8,2.4715]
[1720915789567,1.08527107,3192.5,3191.8,2.4715]
[1720915789770,1.08527107,3192.7,3191.8,2.4715]
[1720915791650,3.04574849,3192.7,3191.8,2.4715]
[1720915791856,1.42334835,3192.6,3191.8,2.4715]
[1720915792027,1.0854142,3192.5,3191.9,0.0626517]
[1720915792231,1.0854142,3192.4,3192.2,1.903]
[1720915792432,0.32821091,3193.3,3192.3,2.4715]
[1720915792629,1.08518843,3193.2,3192.3,2.4715]
[1720915792866,1.08518843,3193.1,3192.3,2.4715]
[1720915793072,1.08518843,3193.0,3192.3,2.91521418]
[1720915793254,1.08518843,3193.0,3192.4,0.06264184]
[1720915793433,1.08518843,3193.0,3192.3,2.91521418]
[1720915793783,1.08515862,3192.9,3192.3,2.91521418]
[1720915795292,0.32821091,3193.3,3192.3,2.91521418]
[1720915795449,1.08515803,3192.8,3192.4,0.48182142]
[1720915795646,0.32821091,3193.3,3192.4,0.48182142]
[1720915795848,1.0851504,3193.2,3192.4,0.48182142]
[1720915796078,1.0851504,3193.1,3192.4,0.48182142]
[1720915796288,1.0851504,3193.0,3192.5,0.33970356]
[1720915796584,1.0851504,3193.2,3192.5,0.33970356]
[1720915796737,1.08517195,3193.1,3192.4,0.48182142]
[1720915797146,1.08517195,3193.0,3192.4,0.48182142]
[1720915797367,1.08517195,3192.9,3192.4,0.48182142]
[1720915797580,1.08517195,3192.8,3192.4,0.48182142]
[1720915797756,1.08517195,3192.7,3192.4,0.48182142]
[1720915798079,1.08517195,3192.6,3192.4,0.48182142]
[1720915798277,1.96029876,3193.5,3192.5,0.29533214]
[1720915798478,1.0851112,3193.4,3192.5,0.29533214]
[1720915798778,1.0851112,3193.3,3192.5,0.29533214]
[1720915799079,1.0851112,3193.2,3192.5,3.29533214]
[1720915799284,1.0851112,3193.1,3192.5,3.29533214]
[1720915799489,4.23399876,3193.6,3192.5,3.29533214]
[1720915799490,1.0851112,3193.0,3192.5,3.29533214]
[1720915799697,1.0851112,3192.9,3192.6,0.59698436]
[1720915799986,1.0851112,3192.8,3192.6,0.59698436]
[1720915800180,2.2737,3193.6,3192.6,0.59698436]
[1720915800343,1.08510152,3193.5,3192.5,3.29533214]
[1720915800544,1.08510152,3193.4,3192.5,3.29533214]
[1720915800775,1.08510152,3193.3,3192.5,3.29533214]
[1720915801101,1.08510152,3193.2,3192.5,3.29533214]
[1720915801276,1.08510152,3193.1,3192.5,3.29533214]
[1720915801445,1.08510152,3193.4,3192.6,0.59698436]
[1720915802143,1.08510152,3193.4,3192.7,2.3535]
[1720915802371,3.04502798,3193.6,3192.7,2.3535]
[1720915802582,1.08510152,3193.5,3192.7,2.3535]
[1720915802776,1.08506301,3193.4,3192.7,2.3535]
[1720915802983,1.08506301,3193.3,3192.8,0.29504844]
[1720915803284,1.08505328,3193.2,3192.8,0.29504844]
[1720915803485,1.08505328,3193.1,3192.8,0.29504844]
[1720915803654,1.08505328,3193.6,3192.8,0.29504844]